bitfinex/quotes_SOLUSD_20251106
["timestamp","ask_amount","ask_price","bid_price","bid_amount"]
[1762461335013,7.52,155.93,155.92,6.4135454]
[1762461336218,7.22,155.93,155.92,6.4135454]
[1762461338201,7.22,155.93,155.91,11.55020217]
[1762461338401,7.22,155.93,155.75,32.10162237]
[1762461338402,15.59516818,155.92,155.85,0.65]
[1762461338611,9.78882769,155.9,155.86,5.13634049]
[1762461338812,7.52,155.89,155.86,5.13634049]
[1762461339121,7.52,155.89,155.87,5.78634049]
[1762461339416,7.52,155.89,155.87,5.13634049]
[1762461339593,7.52,155.89,155.86,5.13634049]
[1762461339789,9.78882769,155.88,155.86,5.13634049]
[1762461340428,9.78882769,155.88,155.86,6.41577661]
[1762461342313,9.78882769,155.88,155.85,11.55276654]
[1762461342514,9.78882769,155.88,155.82,6.41758064]
[1762461342515,9.78882769,155.86,155.82,6.41758064]
[1762461342706,7.52,155.85,155.82,6.41758064]
[1762461342901,8.19,155.85,155.82,6.41758064]
[1762461343114,0.67,155.84,155.82,6.41758064]
[1762461343311,0.67,155.84,155.81,6.41798408]
[1762461343623,9.78882769,155.81,155.8,0.1]
[1762461343803,17.30882769,155.81,155.8,0.1]
[1762461344001,0.67,155.85,155.8,12.3048211]
[1762461344201,14.92516818,155.89,155.84,5.13634049]
[1762461344427,9.78882769,155.87,155.85,6.41642605]
[1762461344640,9.78882769,155.87,155.85,11.55276654]
[1762461344808,7.52,155.86,155.85,11.55276654]
[1762461346330,7.52,155.86,155.85,5.13634049]
[1762461346530,7.52,155.86,155.85,11.55276654]
[1762461348933,17.97882769,155.86,155.84,6.41655459]
[1762461349732,10.45882769,155.85,155.8,0.1]
[1762461349942,9.78882769,155.82,155.8,0.1]
[1762461350123,8.21,155.81,155.8,0.1]
[1762461350640,17.99882769,155.81,155.8,0.1]
[1762461351710,17.32882769,155.81,155.8,6.51848523]
[1762461351935,7.54,155.81,155.8,6.51848523]
[1762461352121,7.54,155.81,155.8,0.1]
[1762461352314,7.54,155.81,155.8,6.51848523]
[1762461352509,7.54,155.81,155.8,11.65482572]
[1762461354036,0.67,155.85,155.8,28.36103881]
[1762461354245,9.78882769,155.87,155.83,5.13634049]
[1762461354417,7.54,155.86,155.83,5.13634049]
[1762461354826,0.67,155.85,155.83,5.13634049]
[1762461355137,0.67,155.85,155.83,11.55339761]
[1762461355438,7.54,155.86,155.84,5.79634049]
[1762461355735,7.54,155.86,155.84,5.13634049]
[1762461356035,7.54,155.86,155.83,23.12018103]
[1762461356209,7.54,155.86,155.84,5.13634049]
[1762461357038,8.21,155.86,155.84,5.13634049]
[1762461357209,7.54,155.86,155.84,11.55277128]
[1762461357413,0.67,155.92,155.85,5.79634049]
[1762461357615,23.13516818,155.91,155.86,5.13634049]
[1762461357835,9.78882769,155.89,155.86,5.13634049]
[1762461358433,10.45882769,155.89,155.86,5.13634049]
[1762461358847,0.67,155.88,155.84,6.41643079]
[1762461359142,7.54,155.87,155.84,11.55277128]
[1762461359522,8.21,155.87,155.84,6.41643079]
[1762461360652,8.21,155.87,155.84,11.55277128]
[1762461360942,7.54,155.87,155.84,11.55277128]
[1762461361520,9.78882769,155.84,155.8,0.1]
[1762461361735,14.92516818,155.82,155.8,0.1]
[1762461362150,15.59516818,155.82,155.8,0.1]
[1762461362337,10.45882769,155.82,155.8,6.51837349]
[1762461362537,0.67,155.85,155.8,23.22458658]
[1762461362738,0.67,155.85,155.81,8.08728984]
[1762461362922,7.54,155.84,155.82,8.08728984]
[1762461363123,7.54,155.84,155.81,8.08728984]
[1762461363554,7.54,155.84,155.82,8.08728984]
[1762461363745,8.21,155.84,155.81,14.50534526]
[1762461364046,9.78882769,155.82,155.8,0.1]
[1762461364252,7.54,155.81,155.8,14.60569618]
[1762461364454,10.45882769,155.86,155.81,0.66]
[1762461364623,9.78882769,155.84,155.82,8.08728984]
[1762461364824,9.78882769,155.84,155.8,8.18728984]
[1762461365047,10.45882769,155.84,155.8,8.18728984]
[1762461365430,0.67,155.83,155.8,8.18728984]
[1762461365631,7.54,155.82,155.8,8.18728984]
[1762461365955,7.54,155.82,155.8,14.60575056]
[1762461366257,7.54,155.82,155.8,6.51846072]
[1762461367329,7.54,155.82,155.81,0.66]
[1762461367655,9.78882769,155.86,155.81,31.21054636]
[1762461367863,9.78882769,155.89,155.85,8.08728984]
[1762461368060,7.54,155.88,155.86,8.08728984]
[1762461369534,7.54,155.88,155.87,6.41560274]
[1762461370039,7.54,155.88,155.81,0.17469132]
[1762461370242,18.54611753,155.87,155.82,8.08728984]
[1762461370431,7.54,155.88,155.85,8.08728984]
[1762461370637,7.54,155.88,155.87,8.08728984]
[1762461371159,7.54,155.88,155.86,8.08728984]
[1762461371531,7.54,155.88,155.87,14.50289258]
[1762461372359,7.54,155.88,155.87,6.41560274]
[1762461373041,7.54,155.88,155.87,15.16289258]
[1762461373232,7.54,155.88,155.87,14.50289258]
[1762461373955,7.54,155.88,155.87,8.08728984]
[1762461374267,7.54,155.88,155.86,6.41601437]
[1762461374432,7.54,155.88,155.87,8.08728984]
[1762461374942,7.54,155.88,155.87,8.74728984]
[1762461375129,7.54,155.88,155.87,8.08728984]
[1762461375867,7.54,155.88,155.87,15.16289258]
[1762461376033,7.54,155.9,155.87,31.20189944]
[1762461376235,9.78882769,155.96,155.89,8.08728984]
[1762461376550,9.78882769,155.94,155.93,8.08728984]
[1762461376752,7.54,155.95,155.93,8.08728984]
[1762461376960,17.32882769,155.95,155.94,8.08728984]
[1762461377162,7.54,155.95,155.93,8.08728984]
[1762461378062,7.54,155.95,155.94,6.41272284]
[1762461378255,7.54,155.95,155.93,14.50040265]
[1762461380059,0.67,155.94,155.92,6.41350971]
[1762461380258,17.87611753,155.93,155.88,14.50243309]
[1762461380557,9.78882769,155.91,155.88,14.50243309]
[1762461380862,9.78882769,155.91,155.88,30.54041102]
[1762461381865,9.78882769,155.91,155.89,8.08728984]
[1762461382034,7.52,155.92,155.9,8.08728984]
[1762461382240,7.52,155.92,155.91,14.5012466]
[1762461382440,8.21,155.92,155.9,6.4142854]
[1762461382648,7.52,155.92,155.9,6.4142854]
[1762461384355,7.52,155.92,155.91,8.08728984]
[1762461385876,7.52,155.92,155.91,14.5012466]
[1762461386470,7.52,155.92,155.91,31.20613852]
[1762461386667,7.52,155.92,155.91,6.41395676]
[1762461387197,7.52,155.92,155.9,6.41421623]
[1762461387483,8.21,155.92,155.9,6.41421623]
[1762461388078,10.47882769,155.91,155.87,6.41544663]
[1762461388375,9.78882769,155.91,155.88,0.67]
[1762461388579,9.78882769,155.91,155.87,8.75728984]
[1762461388755,10.47882769,155.91,155.88,8.08728984]
[1762461388958,9.78882769,155.91,155.87,0.67]
[1762461389158,9.78882769,155.91,155.88,8.08728984]
[1762461389551,9.78882769,155.91,155.89,8.75728984]
[1762461389770,9.78882769,155.91,155.89,8.08728984]
[1762461389970,8.08728984,155.94,155.89,8.08728984]
[1762461389971,9.78882769,155.93,155.89,8.08728984]
[1762461390173,9.78882769,155.91,155.89,14.5020522]
[1762461390553,9.78882769,155.91,155.88,8.75728984]
[1762461390753,10.47882769,155.91,155.87,8.08728984]
[1762461390963,0.69,155.9,155.84,0.67]
[1762461391165,9.78882769,155.86,155.82,8.08728984]
[1762461391478,7.52,155.85,155.81,30.55054636]
[1762461391787,7.52,155.85,155.82,8.75728984]
[1762461391950,10.47882769,155.84,155.8,8.18728984]
[1762461392154,18.56611753,155.84,155.8,6.51823138]
[1762461392350,9.78882769,155.84,155.8,15.27552122]
[1762461392573,10.47882769,155.84,155.8,31.32173431]
[1762461393066,10.47882769,155.84,155.8,30.65173431]
[1762461393270,10.47882769,155.84,155.8,14.60552122]
[1762461393471,17.87611753,155.84,155.8,0.1]
[1762461393764,9.78882769,155.84,155.8,15.27575719]
[1762461393974,9.78882769,155.82,155.8,0.1]
[1762461394292,25.39611753,155.81,155.8,0.1]
[1762461394468,17.30882769,155.81,155.8,0.1]
[1762461394793,7.52,155.81,155.8,15.27577507]
[1762461394999,7.52,155.81,155.8,31.32198816]
[1762461396091,7.52,155.81,155.8,14.60577507]
[1762461396392,7.52,155.81,155.8,15.27577507]
[1762461398378,7.52,155.81,155.8,7.18848523]
[1762461398580,7.52,155.81,155.8,15.27577507]
[1762461399161,9.78882769,155.85,155.8,63.41441434]
[1762461399367,7.52,155.84,155.83,8.08728984]
[1762461399561,8.22,155.84,155.8,22.56469832]
[1762461399772,0.7,155.83,155.81,8.08728984]
[1762461400306,7.52,155.84,155.81,8.08728984]
[1762461400466,7.52,155.84,155.8,0.1]
[1762461400467,9.78882769,155.82,155.8,0.1]
[1762461400668,18.00882769,155.81,155.8,0.1]
[1762461400970,17.30882769,155.81,155.8,6.51848523]
[1762461401765,17.30882769,155.81,155.8,0.1]
[1762461401981,18.00882769,155.81,155.8,0.1]
[1762461402493,17.30882769,155.81,155.8,6.51848523]
[1762461402991,17.30882769,155.81,155.8,0.1]
[1762461403158,9.78882769,155.81,155.8,0.1]
[1762461403502,17.30882769,155.81,155.8,6.51848523]
[1762461405093,17.30882769,155.81,155.8,14.60577507]
[1762461405385,7.52,155.81,155.8,15.29577507]
[1762461405687,7.52,155.81,155.8,14.60577507]
[1762461405986,7.52,155.81,155.8,15.29577507]
[1762461406962,0.7,155.91,155.8,63.43441434]
[1762461407277,17.30882769,155.9,155.86,14.50305864]
[1762461407474,17.30882769,155.9,155.89,8.08728984]
[1762461407664,0.7,155.93,155.89,8.08728984]
[1762461407866,7.52,155.92,155.9,8.08728984]
[1762461408076,9.78882769,155.91,155.9,8.08728984]
[1762461408276,8.22,155.92,155.89,8.08728984]
[1762461408491,7.52,155.92,155.89,8.08728984]
[1762461408672,0.7,155.91,155.87,8.08728984]
[1762461408877,10.48882769,155.91,155.87,8.08728984]
[1762461409263,9.78882769,155.89,155.88,6.41519117]
[1762461409468,17.30882769,155.89,155.88,6.41519117]
[1762461410384,17.30882769,155.89,155.88,14.50248101]
[1762461410588,7.52,155.89,155.88,15.19248101]
[1762461410794,7.52,155.89,155.88,14.50248101]
[1762461411095,8.22,155.89,155.85,6.41633449]
[1762461411302,17.30882769,155.89,155.87,8.08728984]
[1762461411468,17.30882769,155.89,155.87,14.5026388]
[1762461411669,17.30882769,155.89,155.88,8.08728984]
[1762461412589,7.52,155.89,155.88,8.08728984]
[1762461413495,7.52,155.89,155.88,14.50248101]
[1762461414204,9.78882769,155.94,155.88,31.25045894]
[1762461414500,17.30882769,155.94,155.92,8.08728984]
[1762461415594,17.30882769,155.94,155.92,14.50057006]
[1762461416293,17.30882769,155.94,155.93,8.08728984]
[1762461417280,17.30882769,155.94,155.92,14.50057006]
[1762461418411,17.30882769,155.94,155.92,15.21057006]
[1762461418610,7.52,155.94,155.93,8.08728984]
[1762461419783,7.52,155.94,155.93,14.50042393]
[1762461420986,9.78882769,155.93,155.91,6.41383883]
[1762461421204,10.43882769,155.93,155.91,6.41383883]
[1762461421408,9.78882769,155.93,155.91,6.41383883]
[1762461421600,7.52,155.94,155.92,8.79728984]
[1762461421796,9.78882769,155.97,155.93,31.24325917]
[1762461422104,7.52,155.98,155.96,8.08728984]
[1762461422312,17.30882769,155.98,155.97,8.08728984]
[1762461422496,9.78882769,156.02,155.97,8.08728984]
[1762461422697,14.49471903,156.07,156.01,8.08728984]
[1762461423028,9.78882769,156.04,156.01,8.08728984]
[1762461423211,7.52,156.03,156.01,8.08728984]
[1762461423590,9.78882769,156.02,156.01,8.08728984]
[1762461423919,9.78882769,156.02,156.01,14.49713536]
[1762461424417,9.78882769,156.02,156.01,11.54121493]
[1762461424901,7.52,156.03,156.01,12.25121493]
[1762461425103,17.30882769,156.03,156.02,5.13136941]
[1762461425416,17.52,156.09,156.02,5.84136941]
[1762461425417,7.52,156.05,156.02,5.84136941]
[1762461425601,7.52,156.05,156.0,6.41023975]
[1762461425800,10.43882769,156.04,155.98,6.41107834]
[1762461426107,15.5701971,156.04,155.99,5.13136941]
[1762461426618,5.13136941,156.02,155.98,6.41107834]
[1762461426820,17.30882769,156.01,155.98,11.54244775]
[1762461427114,14.9201971,155.99,155.94,11.54409225]
[1762461427417,7.52,155.98,155.95,5.13136941]
[1762461427712,9.78882769,156.01,155.97,11.54285879]
[1762461427920,7.52,156.0,155.98,5.13136941]
[1762461428619,7.52,156.0,155.97,27.57158226]
[1762461428798,7.52,156.0,155.97,22.44021285]
[1762461429116,7.52,156.0,155.97,23.15021285]
[1762461429319,7.52,156.0,155.97,28.28158226]
[1762461429689,7.52,156.0,155.97,11.54285879]
[1762461429912,7.52,156.0,155.98,0.71]
[1762461430689,7.52,156.0,155.98,5.84136941]
[1762461431319,7.52,156.0,155.98,0.71]
[1762461431492,7.52,156.0,155.96,12.25316688]
[1762461431693,5.13136941,155.98,155.94,6.41265868]
[1762461431907,7.52,155.97,155.94,6.41265868]
[1762461432111,7.52,155.97,155.94,7.12265868]
[1762461432804,7.52,155.97,155.94,11.54402809]
[1762461433021,7.52,155.97,155.95,5.84136941]
[1762461433391,7.52,155.98,155.96,5.84136941]
[1762461433597,7.52,156.0,155.97,5.13136941]
[1762461433797,7.52,156.0,155.99,6.41066735]
[1762461434217,7.52,156.0,155.99,7.12066735]
[1762461435228,14.9201971,156.03,155.99,7.12066735]
[1762461435401,9.78882769,156.03,156.02,5.13136941]
[1762461436008,7.52,156.04,156.02,5.13136941]
[1762461436206,0.2,156.09,156.03,5.84136941]
[1762461436407,0.2,156.09,156.07,5.13136941]
[1762461436638,7.72,156.09,156.08,5.13136941]
[1762461436852,7.72,156.09,156.07,5.13136941]
[1762461437149,7.72,156.09,156.06,5.13136941]
[1762461437429,7.72,156.09,156.07,11.53875071]
[1762461437640,7.72,156.09,156.07,6.4073813]
[1762461437814,7.72,156.09,156.07,11.53875071]
[1762461438016,7.72,156.09,156.06,6.40770496]
[1762461438210,7.72,156.09,156.06,5.84136941]
[1762461438627,7.72,156.09,156.07,5.13136941]
[1762461439410,7.72,156.09,156.07,11.53841307]
[1762461439710,0.2,156.09,156.08,5.13136941]
[1762461439922,7.72,156.09,156.07,6.40704366]
[1762461440632,7.72,156.09,156.08,5.13136941]
[1762461440816,7.72,156.09,156.06,11.53907707]
[1762461441431,10.43882769,156.08,156.05,6.4080671]
[1762461441751,0.65,156.07,156.05,6.4080671]
[1762461441914,7.52,156.06,156.05,6.4080671]
[1762461442418,7.52,156.06,156.05,11.53943651]
[1762461442617,7.52,156.06,156.05,6.4080671]
[1762461443451,7.52,156.06,156.05,7.0780671]
[1762461443612,0.2,156.09,156.05,28.22994275]
[1762461443815,7.52,156.08,156.07,5.13136941]
[1762461444047,7.52,156.08,156.07,5.80136941]
[1762461445415,7.52,156.08,156.07,12.20875071]
[1762461445654,0.2,156.09,156.07,12.20875071]
[1762461445949,0.2,156.09,156.08,5.80136941]
[1762461446455,0.2,156.09,156.08,5.13136941]
[1762461446746,0.2,156.09,156.08,5.80136941]
[1762461447853,0.2,156.09,156.08,12.20834019]
[1762461448148,0.2,156.09,156.08,11.53834019]
[1762461448319,0.2,156.09,156.08,12.20834019]
[1762461451342,0.2,156.09,156.08,7.07697078]
[1762461451530,0.2,156.09,156.08,6.40697078]
[1762461451917,0.2,156.09,156.08,12.20834019]
[1762461453247,0.2,156.1,156.08,12.20834019]
[1762461453559,0.2,156.1,156.09,5.80136941]
[1762461453722,0.2,156.1,156.09,0.67]
[1762461453925,0.2,156.1,156.09,12.20792972]
[1762461454966,0.2,156.1,156.08,6.40689831]
[1762461455779,0.2,156.1,156.08,7.07689831]
[1762461455953,0.2,156.1,156.08,6.40689831]
[1762461456274,9.98882769,156.1,156.07,6.40731158]
[1762461456468,9.98882769,156.1,156.07,7.07731158]
[1762461457559,9.98882769,156.1,156.07,0.67]
[1762461457876,9.98882769,156.1,156.06,11.53903462]
[1762461457877,17.50882769,156.1,156.06,11.53903462]
[1762461458178,17.50882769,156.1,156.06,12.19903462]
[1762461458759,18.21882769,156.1,156.06,12.19903462]
[1762461459574,18.21882769,156.1,156.04,27.00047878]
[1762461459575,9.78882769,156.08,156.04,27.00047878]
[1762461460079,22.6401971,156.1,156.05,5.13136941]
[1762461460380,5.13136941,156.09,156.05,0.66]
[1762461460580,9.78882769,156.08,156.04,32.13184819]
[1762461460892,10.49882769,156.08,156.04,11.53984819]
[1762461461051,0.71,156.07,156.04,6.40847878]
[1762461461663,14.9201971,156.08,156.04,6.40847878]
[1762461461959,8.23,156.07,156.03,6.40887606]
[1762461462159,8.23,156.07,156.03,28.22280523]
[1762461462559,7.52,156.07,156.04,5.13136941]
[1762461462781,8.23,156.07,156.03,12.20024547]
[1762461462986,9.78882769,156.06,156.03,12.20024547]
[1762461463392,7.52,156.07,156.04,5.79136941]
[1762461463978,7.52,156.07,156.04,12.19966935]
[1762461464355,7.52,156.07,156.04,9.25685026]
[1762461464985,8.23,156.07,156.04,6.40829994]
[1762461465276,8.23,156.07,156.03,8.59752009]
[1762461465475,9.78882769,156.04,155.99,8.59917582]
[1762461465676,9.70855032,156.03,155.98,2.84855032]
[1762461465854,10.41855032,156.03,155.98,9.25962127]
[1762461466055,9.78882769,156.02,155.98,2.18855032]
[1762461466286,11.97737801,156.0,155.95,0.66]
[1762461466457,9.70855032,155.99,155.94,8.60127316]
[1762461466666,11.97737801,155.98,155.93,9.26152654]
[1762461466863,12.68737801,155.98,155.93,9.26152654]
[1762461467273,2.89855032,155.97,155.92,2.18855032]
[1762461467478,7.52,155.96,155.93,6.4131312]
[1762461467679,7.52,155.96,155.93,9.26168152]
[1762461467873,7.52,155.96,155.93,25.29451676]
[1762461468265,7.52,155.96,155.93,7.0731312]
[1762461468465,7.52,155.96,155.93,6.4131312]
[1762461468768,8.23,155.96,155.93,6.4131312]
[1762461468964,7.52,155.96,155.93,7.0731312]
[1762461470295,7.52,155.96,155.93,6.4131312]
[1762461470459,7.52,155.96,155.93,7.0731312]
[1762461470778,7.52,155.96,155.94,0.66]
[1762461471174,7.52,155.96,155.94,5.79691477]
[1762461471562,7.52,155.96,155.94,0.66]
[1762461471767,7.52,155.96,155.93,11.55004597]
[1762461471970,7.52,155.96,155.93,6.4131312]
[1762461472171,7.52,155.96,155.93,7.0731312]
[1762461472359,6.8,155.96,155.94,0.67]
[1762461472666,8.18,156.0,155.95,5.13691477]
[1762461472872,7.52,155.99,155.96,5.13691477]
[1762461473607,9.78882769,155.98,155.95,5.13691477]
[1762461473886,9.78882769,155.96,155.93,11.55004597]
[1762461474083,8.18,155.95,155.93,6.4131312]
[1762461474585,7.52,155.95,155.93,6.4131312]
[1762461475665,8.18,155.95,155.92,6.41346791]
[1762461475973,0.66,155.94,155.92,6.41346791]
[1762461476483,0.66,155.94,155.91,6.41395676]
[1762461476667,0.66,155.94,155.91,11.55087153]
[1762461476877,0.66,155.94,155.9,6.41421486]
[1762461476878,9.78882769,155.93,155.9,6.41421486]
[1762461477183,7.52,155.92,155.9,6.41421486]
[1762461477383,9.78882769,155.91,155.87,0.67]
[1762461477695,9.78882769,155.91,155.81,62.7]
[1762461477696,9.78882769,155.87,155.81,23.13325652]
[1762461477989,7.52,155.86,155.81,27.60017129]
[1762461478364,0.66,155.85,155.81,27.60017129]
[1762461478560,0.66,155.85,155.81,11.55498806]
[1762461478764,14.92574246,155.84,155.8,0.1]
[1762461478984,7.52,155.83,155.8,6.51845866]
[1762461479179,7.52,155.83,155.8,11.65537343]
[1762461480295,7.52,155.83,155.81,5.13691477]
[1762461480675,7.52,155.83,155.81,6.4176699]
[1762461480873,7.52,155.83,155.81,11.55458467]
[1762461481285,7.52,155.83,155.8,6.51834969]
[1762461481491,8.18,155.83,155.8,11.65526446]
[1762461481698,15.58574246,155.82,155.8,0.1]
[1762461481873,14.92574246,155.81,155.8,0.1]
[1762461482192,0.66,155.84,155.8,5.23691477]
[1762461482492,17.30882769,155.85,155.83,5.13691477]
[1762461482698,17.30882769,155.84,155.83,6.41690431]
[1762461483106,7.52,155.84,155.83,6.41690431]
[1762461483274,7.52,155.84,155.82,6.41754773]
[1762461483467,7.52,155.84,155.8,16.81621309]
[1762461483468,7.52,155.84,155.8,0.1]
[1762461483670,7.52,155.89,155.84,20.592]
[1762461483898,7.52,155.89,155.87,5.13691477]
[1762461484097,8.18,155.89,155.87,5.13691477]
[1762461484490,7.52,155.89,155.87,8.07740143]
[1762461484803,8.18,155.89,155.87,8.07740143]
[1762461485021,7.52,155.89,155.87,8.07740143]
[1762461485208,7.52,155.9,155.88,8.07740143]
[1762461485517,0.80143617,155.97,155.89,8.07740143]
[1762461485518,7.52,155.96,155.89,8.07740143]
[1762461485723,17.86622912,155.95,155.88,20.592]
[1762461485916,18.52622912,155.95,155.9,8.07740143]
[1762461486099,9.78882769,155.93,155.9,8.07740143]
[1762461486302,17.30882769,155.93,155.9,8.07740143]
[1762461486512,0.66,155.98,155.92,8.07740143]
[1762461486813,7.52,155.96,155.93,14.49053552]
[1762461487193,8.18,155.96,155.93,14.49053552]
[1762461487495,10.44882769,155.95,155.93,6.41313409]
[1762461487805,10.44882769,155.95,155.92,6.41347209]
[1762461488230,9.78882769,155.95,155.92,14.49087352]
[1762461488526,9.78882769,155.95,155.93,8.07740143]
[1762461488706,9.78882769,155.95,155.93,6.41283437]
[1762461489413,9.78882769,155.95,155.92,24.11126494]
[1762461489414,0.66,155.94,155.91,6.41395676]
[1762461489927,0.66,155.94,155.89,8.07740143]
[1762461490228,9.78882769,155.92,155.82,0.17391265]
[1762461490523,17.86622912,155.92,155.87,8.07740143]
[1762461490736,0.66,155.91,155.88,6.41519117]
[1762461491225,7.52,155.9,155.88,6.41519117]
[1762461491403,7.52,155.9,155.87,14.49293755]
[1762461491794,7.52,155.9,155.87,30.53194441]
[1762461491995,7.52,155.9,155.88,8.07740143]
[1762461493038,8.18,155.9,155.89,6.41477965]
[1762461493240,7.52,155.9,155.89,6.41477965]
[1762461493740,8.18,155.9,155.89,6.41477965]
[1762461494242,9.78882769,155.89,155.85,8.07740143]
[1762461494409,0.66,155.88,155.85,8.07740143]
[1762461494833,0.66,155.88,155.86,6.41601437]
[1762461495025,0.66,155.88,155.86,14.4934158]
[1762461495529,9.78882769,155.89,155.86,14.4934158]
[1762461495735,10.44882769,155.89,155.86,14.4934158]
[1762461496133,10.44882769,155.89,155.86,30.53345172]
[1762461496311,10.44882769,155.89,155.87,8.07740143]
[1762461496932,7.52,155.9,155.87,8.07740143]
[1762461497136,0.66,155.92,155.89,8.07740143]
[1762461497355,7.52,155.91,155.9,8.07740143]
[1762461497810,10.44882769,155.95,155.9,8.07740143]
[1762461498014,0.66,155.95,155.93,8.07740143]
[1762461498319,0.66,155.94,155.93,8.07740143]
[1762461498530,0.66,155.95,155.93,8.07740143]
[1762461498710,8.18,155.96,155.94,8.07740143]
[1762461498913,7.52,155.96,155.95,14.48971306]
[1762461499413,7.52,155.96,155.9,0.17353592]
[1762461499414,9.78882769,155.95,155.9,14.49164009]
[1762461499623,18.52622912,155.95,155.9,14.49164009]
[1762461499827,0.66,155.94,155.9,30.52756055]
[1762461500015,7.52,155.96,155.93,8.07740143]
[1762461500219,7.52,155.96,155.95,8.07740143]
[1762461500551,0.66,155.95,155.93,8.07740143]
[1762461500709,8.18,155.96,155.93,8.07740143]
[1762461500905,8.18,155.96,155.94,6.41272284]
[1762461500906,0.66,155.95,155.94,6.41272284]
[1762461501137,7.52,155.96,155.94,6.41272284]
[1762461501326,0.66,155.95,155.94,6.41272284]
[1762461501532,0.66,155.95,155.93,6.41303447]
[1762461501847,9.78882769,155.94,155.91,14.49135819]
[1762461502332,10.44882769,155.94,155.91,14.49135819]
[1762461502518,17.86622912,155.94,155.91,6.41395676]
[1762461502724,0.7,155.93,155.91,6.41395676]
[1762461503415,9.78882769,155.94,155.91,14.49135819]
[1762461503620,9.78882769,155.94,155.92,8.07740143]
[1762461503819,10.48882769,155.94,155.92,8.07740143]
[1762461504428,0.7,155.93,155.92,8.07740143]
[1762461504633,9.78882769,155.94,155.92,8.07740143]
[1762461504822,10.48882769,155.94,155.92,8.07740143]
[1762461505140,10.48882769,155.94,155.93,6.41313409]
[1762461505348,7.52,155.95,155.93,14.49053552]
[1762461505520,8.22,155.95,155.93,14.49053552]
[1762461505717,7.52,155.95,155.94,8.07740143]
[1762461505920,8.22,155.95,155.94,8.07740143]
[1762461506519,8.22,155.95,155.93,14.49053552]
[1762461507340,8.22,155.95,155.93,6.41313409]
[1762461507721,18.56622912,155.94,155.84,6.41683778]
[1762461507928,8.07740143,155.92,155.85,20.592]
[1762461508252,17.86622912,155.9,155.84,22.45893223]
[1762461508423,8.07740143,155.89,155.84,30.53633366]
[1762461508618,7.52,155.88,155.84,30.53633366]
[1762461508820,7.52,155.88,155.85,8.73740143]
[1762461509222,7.52,155.88,155.85,0.66]
[1762461509518,7.52,155.88,155.86,14.4934158]
[1762461509723,7.52,155.91,155.87,8.73740143]
[1762461509918,7.52,155.91,155.88,8.07740143]
[1762461510155,8.22,155.91,155.88,8.07740143]
[1762461511041,0.7,155.9,155.89,6.41477965]
[1762461512145,7.52,155.91,155.89,6.41477965]
[1762461512657,8.22,155.91,155.89,6.41477965]
[1762461513015,7.52,155.91,155.9,14.49176961]
[1762461513325,6.41095383,155.99,155.9,30.52769007]
[1762461513534,0.7,155.96,155.93,8.07740143]
[1762461513730,7.52,155.95,155.93,8.07740143]
[1762461513917,7.52,155.95,155.94,8.07740143]
[1762461514317,8.22,155.95,155.93,8.07740143]
[1762461514519,8.22,155.95,155.9,14.49176961]
[1762461514520,9.78882769,155.93,155.9,14.49176961]
[1762461514745,9.78882769,155.93,155.9,6.41436818]
[1762461514917,8.22,155.92,155.9,6.41436818]
[1762461517345,7.52,155.92,155.9,8.07740143]
[1762461517750,7.52,155.92,155.89,30.52899475]
[1762461517930,10.50882769,155.91,155.89,22.45159332]
[1762461518956,10.50882769,155.91,155.89,6.41464419]
[1762461519749,0.72,155.9,155.87,6.41544693]
[1762461519954,7.52,155.89,155.87,14.49284836]
[1762461520273,7.52,155.91,155.88,8.07740143]
[1762461520426,7.52,155.91,155.89,8.07740143]
[1762461520828,8.07740143,155.97,155.9,14.49176961]
[1762461521021,0.72,155.95,155.92,8.07740143]
[1762461521233,0.72,155.95,155.93,8.07740143]
[1762461521234,7.52,155.95,155.93,8.07740143]
[1762461521651,0.72,155.94,155.9,22.45028864]
[1762461521950,9.78882769,155.93,155.9,22.45028864]
[1762461522134,7.52,155.92,155.9,22.45028864]